fUST/lending_fUST_20251113
["ID","MTS","AMOUNT","RATE_DAILY","PERIOD"]
[393793443,1762995032863,-76.25831772,0.00027521,5]
[393793446,1762995032879,-432.04857361,0.00027521,5]
[393793448,1762995032889,-1000.0,0.00027521,5]
[393793450,1762995032898,-502.33198603,0.00027521,5]
[393793452,1762995032908,-1000.0,0.00027521,5]
[393793454,1762995032918,-586.1240753,0.00027521,5]
[393793456,1762995032927,-1000.0,0.00027521,5]
[393793458,1762995032936,-804.26894558,0.00027521,5]
[393793460,1762995032946,-500.0,0.00027521,5]
[393793462,1762995032955,-217.15233878,0.00027532,2]
[393793464,1762995032964,-500.0,0.00027573,5]
[393793466,1762995032975,-424.24297115,0.00027573,5]
[393793468,1762995032984,-518.5,0.00027858,2]
[393793470,1762995032994,-151.0,0.00027858,2]
[393793472,1762995033003,-151.0,0.00027858,2]
[393793474,1762995033012,-151.0,0.00027858,2]
[393793476,1762995033021,-151.0,0.00027858,2]
[393793478,1762995033031,-151.0,0.00027858,2]
[393793480,1762995033040,-151.0,0.00027858,2]
[393793482,1762995033049,-151.0,0.00027858,2]
[393793484,1762995033059,-151.0,0.00027858,2]
[393793486,1762995033068,-151.0,0.00027858,2]
[393793488,1762995033077,-151.0,0.00027858,2]
[393793490,1762995033087,-151.0,0.00027858,2]
[393793492,1762995033096,-500.0,0.00027949,60]
[393793494,1762995033105,-500.0,0.00027949,60]
[393793496,1762995033114,-500.0,0.00027949,60]
[393793498,1762995033124,-277.7007064,0.00027949,60]
[393793500,1762995033134,-331.14875729,0.00027949,60]
[393793501,1762995033143,-500.0,0.00028051,60]
[393793502,1762995033152,-225.18697532,0.0002808,2]
[393793504,1762995033161,-1000.0,0.00028121,5]
[393793506,1762995033171,-500.0,0.00028173,5]
[393793508,1762995033180,-320.0,0.00028355,2]
[393793510,1762995033189,-537.6845,0.00028406,2]
[393793512,1762995033199,-1417.37866883,0.00028625,2]
[393793513,1762995033208,-233.51889341,0.00028628,2]
[393793515,1762995033217,-1000.0,0.00028668,5]
[393793517,1762995033226,-557.5788265,0.00028954,2]
[393793518,1762995033236,-160.0,0.00029096,32]
[393793519,1762995033246,-420.0,0.00029158,2]
[393793520,1762995033256,-242.15909246,0.00029176,2]
[393793521,1762995033266,-1584.0,0.00029208,2]
[393793522,1762995033276,-578.20924308,0.00029502,2]
[393793523,1762995033285,-251.11897888,0.00029724,2]
[393793524,1762995033294,-337.11076587,0.0003,14]
[393793525,1762995033303,-243.02543154,0.0003005,2]
[393793526,1762995033312,-260.4103811,0.00030272,2]
[393793527,1762995033322,-270.0455652,0.0003082,2]
[393793528,1762995033331,-280.03725112,0.00031368,2]
[393793529,1762995033340,-500.0,0.00031373,5]
[393793530,1762995033349,-500.0,0.00031373,5]
[393793531,1762995033359,-500.0,0.00031373,5]
[393793532,1762995033368,-500.0,0.00031373,5]
[393793533,1762995033378,-500.0,0.00031373,5]
[393793534,1762995033387,-500.0,0.00031373,5]
[393793535,1762995033396,-221.67,0.00031476,60]
[393793536,1762995033405,-2431.1078562,0.00031479,2]
[393793537,1762995033420,-587.0,0.00031525,2]
[393793538,1762995033429,-205.0,0.00031864,2]
[393793539,1762995033438,-290.39862941,0.00031916,2]
[393793540,1762995033448,-170.00000001,0.00032,32]
[393793541,1762995033458,-203.0,0.00032148,2]
[393793542,1762995033468,-500.0,0.0003216,5]
[393793543,1762995033477,-205.0,0.00032182,7]
[393793544,1762995033487,-203.0,0.00032321,2]
[393793545,1762995033497,-165.31267103,0.00032373,5]
[393793546,1762995033506,-301.1433787,0.00032464,2]
[393793547,1762995033515,-203.0,0.00032652,7]
[393793548,1762995033525,-151.0,0.00032877,31]
[393793549,1762995033534,-209.81038362,0.000329,120]
[393793550,1762995033543,-207.0,0.00033148,2]
[393793551,1762995033553,-203.0,0.00033245,7]
[393793552,1762995033563,-203.0,0.00033377,2]
[393793553,1762995033572,-203.0,0.00033694,2]
[393793554,1762995033582,-203.0,0.00033756,2]
[393793555,1762995033591,-418.75189778,0.00033893,2]
[393793556,1762995033601,-182.695155,0.00033895,2]
[393793557,1762995033610,-209.81038362,0.000339,120]
[393793558,1762995033619,-205.0,0.00034275,2]
[393793559,1762995033629,-203.0,0.00034423,7]
[393793560,1762995033639,-244.217022,0.00034424,15]
[393793561,1762995033767,-304.46677333,0.00034519,2]
[393793562,1762995033804,-345.87852198,0.00034533,2]
[393793563,1762995033814,-203.0,0.00034613,2]
[393793564,1762995033823,-207.52225429,0.0003463,2]
[393793565,1762995033832,-8803.66248205,0.00034796,2]
[393793566,1762995033842,-500.0,0.00034873,5]
[393793567,1762995033851,-500.0,0.00034873,5]
[393793568,1762995033860,-209.81038362,0.000349,120]
[393793569,1762995033870,-162.0,0.000349,120]
[393793570,1762995033879,-233.12125607,0.00035068,120]
[393793571,1762995033889,-151.4,0.00035258,60]
[393793572,1762995033898,-182.695155,0.000353,5]
[393793573,1762995033907,-151.4,0.00035358,60]
[393793574,1762995033916,-229.0,0.00035365,120]
[393793575,1762995033925,-2121.81927501,0.00035369,2]
[393793576,1762995033934,-200.0,0.00035386,120]
[393793577,1762995033944,-228.0,0.00035393,2]
[393793578,1762995033954,-394.9872363,0.00035407,30]
[393793579,1762995033963,-394.9872363,0.00035407,30]
[393793580,1762995033974,-151.4,0.00035458,60]
[393793581,1762995033984,-151.4,0.00035558,60]
[393793582,1762995033994,-500.0,0.00035616,90]
[393793583,1762995034003,-500.0,0.00035616,30]
[393793584,1762995034013,-399.37829755,0.00035616,5]
[393793585,1762995034022,-151.0,0.00035616,31]
[393793586,1762995034031,-151.0,0.00035616,31]
[393793587,1762995034041,-435.188517,0.00035616,31]
[393793588,1762995034050,-435.188517,0.00035616,31]
[393793589,1762995034059,-435.188517,0.00035616,31]
[393793590,1762995034068,-435.188517,0.00035616,31]
[393793591,1762995034078,-435.188517,0.00035616,31]
[393793592,1762995034088,-435.188517,0.00035616,31]
[393793593,1762995034097,-435.188517,0.00035616,31]
[393793594,1762995034106,-435.188517,0.00035616,31]
[393793595,1762995034116,-175.17619554,0.00035616,2]
[393793596,1762995034125,-151.4,0.00035658,60]
[393793597,1762995034134,-500.0,0.00035671,90]
[393793598,1762995034144,-229.0,0.00035695,7]
[393793599,1762995034154,-200.0,0.00035709,120]
[393793600,1762995034163,-500.0,0.00035726,90]
[393793601,1762995034172,-151.4,0.00035758,60]
[393793602,1762995034182,-500.0,0.0003578,90]
[393793603,1762995034192,-168.0,0.00035797,2]
[393793604,1762995034200,-500.0,0.00035835,90]
[393793605,1762995034210,-151.4,0.00035858,60]
[393793606,1762995034220,-221.18738231,0.0003589,90]
[393793607,1762995034230,-500.0,0.0003589,30]
[393793608,1762995034239,-228.0,0.00035922,7]
[393793609,1762995034248,-151.4,0.00035958,60]
[393793610,1762995034258,-228.0,0.00035981,2]
[393793611,1762995034267,-1383.47,0.00036,2]
[393793612,1762995034276,-428.57254504,0.00036,30]
[393793613,1762995034285,-228.0,0.00036041,2]
[393793614,1762995034294,-151.4,0.00036058,60]
[393793615,1762995034304,-228.0,0.00036155,2]
[393793616,1762995034313,-151.4,0.00036158,60]
[393793617,1762995034323,-500.0,0.00036164,30]
[393793618,1762995034333,-228.0,0.00036181,7]
[393793619,1762995034343,-151.4,0.00036258,60]
[393793620,1762995034353,-151.4,0.00036358,60]
[393793621,1762995034362,-394.9872363,0.00036366,30]
[393793622,1762995034372,-394.9872363,0.00036366,30]
[393793623,1762995034382,-312.08193567,0.00036366,30]
[393793665,1762995038276,-162.6,0.000281,7]
[393793667,1762995038287,-162.6,0.00032,7]
[393793669,1762995038296,-162.6,0.000353,7]
[393793671,1762995038306,-79.94226663,0.00036366,30]
[393793673,1762995038315,-500.0,0.00036438,30]
[393793675,1762995038324,-172.27860895,0.00036448,120]
[393793676,1762995038334,-151.4,0.00036458,60]
[393793678,1762995038343,-182.695155,0.00036472,60]
[393793681,1762995038353,-151.0,0.0003649,31]
[393793682,1762995038362,-151.0,0.0003649,31]
[393793685,1762995038371,-1000.0,0.000365,2]
[393793687,1762995038381,-1000.0,0.000365,2]
[393793689,1762995038391,-400.76,0.000365,3]
[393793691,1762995038400,-151.4,0.00036558,60]
[393793693,1762995038409,-228.0,0.00036577,7]
[393793695,1762995038422,-151.0,0.00036642,31]
[393793697,1762995038431,-435.188517,0.00036642,31]
[393793699,1762995038441,-435.188517,0.00036642,31]
[393793701,1762995038450,-435.188517,0.00036642,31]
[393793702,1762995038459,-435.188517,0.00036642,31]
[393793704,1762995038469,-304.1365573,0.00036653,30]
[393793706,1762995038479,-166.1039899,0.00036653,30]
[393793708,1762995038489,-151.4,0.00036658,60]
[393793710,1762995038499,-229.0,0.00036685,2]
[393793713,1762995038509,-247.81,0.0003669,20]
[393793714,1762995038519,-156.0,0.000367,120]
[393793716,1762995038528,-350.0,0.000367,120]
[393793719,1762995038538,-182.695155,0.00036712,20]
[393793720,1762995038547,-500.0,0.00036712,30]
[393793722,1762995038557,-229.0,0.00036718,2]
[393793725,1762995038566,-185.41784891,0.00036722,14]
[393793727,1762995038575,-151.0,0.00036725,31]
[393793728,1762995038585,-151.0,0.00036725,31]
[393793730,1762995038594,-248.032772,0.00036727,31]
[393793733,1762995038605,-435.188517,0.00036727,31]
[393793735,1762995038614,-435.188517,0.00036727,31]
[393793737,1762995038624,-435.188517,0.00036727,31]
[393793739,1762995038633,-435.188517,0.00036727,31]
[393793741,1762995038642,-13317.23137536,0.00036727,5]
[393793743,1762995038652,-878.29507982,0.00036727,2]
[393793744,1762995038661,-151.4,0.00036758,60]
[393793746,1762995038670,-182.695155,0.000368,31]
[393793749,1762995038680,-686.62,0.000368,14]
[393793751,1762995038689,-151.4,0.00036858,60]
[393793752,1762995038698,-151.4,0.00036958,60]
[393793754,1762995038707,-182.695155,0.00036976,31]
[393793756,1762995038716,-500.0,0.00036986,30]
[393793766,1762995038870,-1000.0,0.00037,2]
[393793767,1762995038881,-151.4,0.00037058,60]
[393793768,1762995038891,-182.695155,0.00037153,31]
[393793769,1762995038901,-151.4,0.00037158,60]
[393793770,1762995038911,-151.4,0.00037258,60]
[393793771,1762995038920,-500.0,0.0003726,30]
[393793773,1762995038930,-201.0,0.000373,46]
[393793774,1762995038939,-500.0,0.00037328,30]
[393793776,1762995038949,-182.695155,0.0003733,31]
[393793778,1762995038958,-151.4,0.00037358,60]
[393793780,1762995038968,-151.4,0.00037458,60]
[393793782,1762995038979,-182.695155,0.00037506,31]
[393793784,1762995038990,-500.0,0.00037534,30]
[393793786,1762995039000,-151.4,0.00037558,60]
[393793788,1762995039010,-185.0,0.0003758,60]
[393793790,1762995039020,-779.12011988,0.0003765,120]
[393793792,1762995039029,-151.4,0.00037658,60]
[393793794,1762995039039,-5000.0,0.00037716,4]
[393793796,1762995039048,-501.36600249,0.00037753,120]
[393793798,1762995039058,-151.4,0.00037758,60]
[393793800,1762995039068,-500.0,0.00037808,30]
[393793802,1762995039077,-151.4,0.00037858,60]
[393793804,1762995039086,-200.0,0.0003788,120]
[393793806,1762995039098,-151.4,0.00037958,60]
[393793808,1762995039107,-211.71968294,0.00038,120]
[393793810,1762995039117,-151.4,0.00038058,60]
[393793812,1762995039126,-500.0,0.00038082,30]
[393793813,1762995039136,-686.62,0.000381,14]
[393793815,1762995039146,-151.4,0.00038158,60]
[393793817,1762995039155,-151.4,0.00038258,60]
[393793819,1762995039164,-500.0,0.00038356,30]
[393793821,1762995039174,-151.4,0.00038358,120]
[393793823,1762995039184,-151.4,0.00038458,120]
[393793825,1762995039194,-156.0,0.000385,120]
[393793827,1762995039203,-151.4,0.00038558,120]
[393793829,1762995039213,-500.0,0.0003863,30]
[393793831,1762995039222,-151.4,0.00038658,120]
[393793833,1762995039231,-508.97251502,0.000387,120]
[393793835,1762995039240,-151.46,0.00038758,120]
[393793837,1762995039249,-435.188517,0.00038792,120]
[393793839,1762995039258,-435.188517,0.00038792,120]
[393793841,1762995039268,-435.188517,0.00038792,120]
[393793843,1762995039279,-435.188508,0.00038792,120]
[393793845,1762995039288,-500.0,0.00038904,30]
[393793847,1762995039297,-561.926172,0.00038947,2]
[393793849,1762995039307,-442.38740797,0.00039,120]
[393793852,1762995039317,-162.8757457,0.00039135,30]
[393793853,1762995039326,-297.8851395,0.00039135,30]
[393793855,1762995039335,-500.0,0.00039178,30]
[393793858,1762995039344,-200.0,0.00039221,120]
[393793859,1762995039354,-182.695155,0.00039389,5]
[393793861,1762995039363,-200.0,0.00039394,120]
[393793863,1762995039372,-500.0,0.00039452,30]
[393793866,1762995039382,-211.032273,0.00039654,2]
[393793868,1762995039392,-686.62,0.000397,14]
[393793870,1762995039401,-500.0,0.00039726,30]
[393793872,1762995039411,-503.0,0.00039727,120]
[393793873,1762995039424,-151.0,0.00039791,120]
[393793876,1762995039434,-150.5,0.0003997,120]
[393793878,1762995039443,-150.5,0.0003998,120]
[393793879,1762995039453,-150.5,0.0003999,120]
[393793881,1762995039463,-500.0,0.0004,30]
[393793883,1762995039473,-13625.56145782,0.0004,2]
[393793922,1762995039835,-26185.92458547,0.0004,2]
[393793925,1762995039853,-390.52540063,0.0004,2]
[393793927,1762995039863,-256.77,0.0004,5]
[393793929,1762995039872,-500.0,0.0004,30]
[393793931,1762995039882,-596.43,0.0004,2]
[393793933,1762995039892,-1137.93804318,0.0004,90]
[393793935,1762995039902,-206.31862284,0.0004,120]
[393793937,1762995039912,-151.0,0.0004,120]
[393793939,1762995039921,-182.695155,0.00040178,60]
[393793941,1762995039931,-652.553911,0.00040183,120]
[393793943,1762995039940,-156.0,0.000402,120]
[393793945,1762995039949,-500.0,0.00040274,30]
[393793947,1762995039959,-182.695155,0.00040338,2]
[393793949,1762995039968,-224.887,0.00040374,2]
[393793951,1762995039978,-500.0,0.00040548,30]
[393793953,1762995039988,-500.0,0.00040822,30]
[393793955,1762995039996,-200.0,0.00040973,120]
[393793957,1762995040005,-500.0,0.00041096,30]
[393793959,1762995040015,-182.695155,0.00041232,20]
[393793960,1762995040024,-500.0,0.0004137,120]
[393793962,1762995040034,-199.98,0.00041476,120]
[393793964,1762995040044,-500.0,0.00041476,120]
[393793966,1762995040054,-531.24,0.00041476,120]
[393793969,1762995040063,-686.62,0.000415,14]
[393793970,1762995040072,-200.0,0.00041598,120]
[393793972,1762995040081,-500.0,0.00041644,120]
[393793974,1762995040091,-200.0,0.00041758,120]
[393793977,1762995040100,-500.0,0.00041918,120]
[393793978,1762995040110,-156.0,0.00042,120]
[393793981,1762995040120,-440.6949532,0.00042136,30]
[393793982,1762995040129,-282.6,0.000424,19]
[393793984,1762995040139,-159.9583554,0.00042409,30]
[393793986,1762995040148,-600.1609864,0.00042409,30]
[393793988,1762995040157,-164.0684288,0.00042409,30]
[393793990,1762995040166,-592.8099389,0.00042409,30]
[393793992,1762995040175,-1000.0,0.00042465,120]
[393793994,1762995040183,-1000.0,0.00042465,120]
[393793996,1762995040193,-964.04879801,0.00042465,120]
[393793998,1762995040204,-154.437597,0.0004258,2]
[393794000,1762995040214,-554.36137363,0.0004276,16]
[393794002,1762995040224,-200.0,0.00042954,120]
[393794004,1762995040233,-2000.0,0.00042973,21]
[393794006,1762995040242,-200.0,0.00043264,120]
[393794008,1762995040251,-182.695155,0.0004344,30]
[393794010,1762995040260,-200.0,0.00043445,120]
[393794012,1762995040269,-182.695155,0.00043479,5]
[393794014,1762995040278,-156.0,0.000437,120]
[393794016,1762995040287,-200.0,0.00043712,120]
[393794018,1762995040296,-1000.0,0.000438,90]
[393794020,1762995040305,-154.437597,0.00043835,20]
[393794022,1762995040315,-182.695155,0.00043884,60]
[393794024,1762995040324,-154.437597,0.00044,30]
[393794026,1762995040333,-2000.0,0.00044283,21]
[393794028,1762995040342,-1998.82999352,0.00045,120]
[393794030,1762995040351,-874.14050493,0.00045,20]
[393794032,1762995040360,-807.75438422,0.00045,120]
[393794034,1762995040369,-904.41935914,0.00045,120]
[393794036,1762995040378,-502.201,0.00045053,30]
[393794038,1762995040387,-652.553911,0.00045205,120]
[393794040,1762995040396,-881.75905846,0.000454,120]
[393794042,1762995040406,-156.0,0.000455,120]
[393794044,1762995040416,-2000.0,0.00045593,21]
[393794046,1762995040429,-200.0,0.000456,120]
[393794048,1762995040438,-182.695155,0.00045753,20]
[393794050,1762995040447,-211.032273,0.00046143,2]
[393794052,1762995040456,-162.6,0.000462,14]
[393794054,1762995040466,-182.695155,0.0004633,30]
[393794056,1762995040476,-200.0,0.00046458,120]
[393794058,1762995040485,-182.695155,0.00046781,2]
[393794060,1762995040497,-2000.0,0.00046903,21]
[393794062,1762995040506,-808.20389926,0.0004699,2]
[393794079,1762995040657,-3816.77912874,0.0004699,2]
[393794081,1762995040667,-156.0,0.000472,120]
[393794083,1762995040676,-182.695155,0.00047568,5]
[393794085,1762995040686,-182.695155,0.0004759,60]
[393794087,1762995040696,-200.0,0.00047665,120]
[393794089,1762995040705,-869.04845901,0.000482,120]
[393794091,1762995040714,-2000.0,0.00048212,21]
[393794093,1762995040724,-326.99,0.000488,120]
[393794095,1762995040735,-160.2,0.000488,30]
[393794097,1762995040744,-2000.0,0.00049,30]
[393794099,1762995040754,-156.0,0.00049,120]
[393794101,1762995040763,-150.0,0.00049,10]
[393794103,1762995040772,-1014.31832684,0.0004912,2]
[393794104,1762995040782,-200.0,0.00049157,120]
[393794106,1762995040791,-3128.96675921,0.00049215,120]
[393794132,1762995041033,-72144.75283229,0.00049215,120]
[393794692,1762995046635,-8738.07128564,0.00049215,120]
[393794694,1762995046646,-1598.57426572,0.00049215,120]
[393794707,1762995046795,-2054.92709409,0.00049215,120]
[393795069,1762995080154,200.0,0.00036727,30]
[393795074,1762995237761,169.634827,0.00013699,2]
[393795075,1762995237873,169.634827,0.00020187,2]
[393795080,1762995613240,800.0,0.00023,2]
[393795083,1762995780904,169.0820085,0.00018488,2]
[393795135,1762996232567,-169.634827,0.00026676,2]
[393795137,1762996232577,-169.634827,0.00033165,2]
[393795139,1762996232587,-300.0,0.00036207,2]
[393795141,1762996232598,-27.96916741,0.00036207,3]
[393795143,1762996232612,-251.03083259,0.00036207,3]
[393795145,1762996232623,-1200.0,0.00036207,3]
[393795147,1762996232633,-9397.91335607,0.00036208,2]
[393795150,1762996232655,-289.11991208,0.00036208,2]
[393795204,1762996238411,-4371.58147025,0.00036208,2]
[393795205,1762996238421,-168.41923591,0.00036218,120]
[393795217,1762996238687,-362.567742,0.00036318,120]
[393795218,1762996238716,-254.24040385,0.00036551,38]
[393795219,1762996238725,-1051.08139146,0.00036735,20]
[393795220,1762996238736,-169.634827,0.00039654,2]
[393795221,1762996238745,-500.0,0.0004045,5]
[393795222,1762996238755,-500.0,0.0004045,5]
[393795223,1762996238764,-500.0,0.0004045,5]
[393795224,1762996238774,-3607.50236457,0.00040488,3]
[393795225,1762996238783,-318.42308997,0.00040497,31]
[393795226,1762996238792,-478.46218546,0.00040497,7]
[393795227,1762996238802,-55427.1820046,0.00040498,28]
[393795228,1762996238812,-500.0,0.000405,5]
[393795229,1762996238821,-502.9238599,0.000405,5]
[393795230,1762996238832,-500.0,0.000405,5]
[393795231,1762996238845,-493.4933021,0.00041048,5]
[393795232,1762996238855,-501.83948246,0.0004135,7]
[393795233,1762996238865,-500.0,0.0004135,10]
[393795234,1762996238875,-427.84625223,0.0004135,7]
[393795235,1762996238884,-29.19235486,0.0004135,120]
[393795298,1762996244166,-0.90870789,0.00036735,15]
[393795342,1762996305940,66.50427833,0.0003288,120]
[393795353,1762996368373,598.18345576,0.0003287,120]
[393795354,1762996380192,340.60859913,0.00032876,120]
[393795374,1762997266729,206.86,0.00032877,120]
[393795538,1762997411077,157.40495265,0.0003674,20]
[393795614,1762997437739,-194.0435232,0.0003,3]
[393795616,1762997437749,-375.49035162,0.00036738,15]
[393795618,1762997437761,-500.0,0.00036738,15]
[393795621,1762997437773,-500.0,0.00036738,15]
[393795624,1762997437783,-500.0,0.00036738,15]
[393795626,1762997437792,-500.0,0.00036738,15]
[393795628,1762997437802,-500.0,0.00036738,15]
[393795630,1762997437813,-572.90211522,0.00036738,15]
[393795632,1762997437822,-500.0,0.00036738,15]
[393795634,1762997437831,-500.0,0.00036738,15]
[393795636,1762997437840,-500.0,0.00036738,15]
[393795638,1762997437850,-500.0,0.00036738,15]
[393795640,1762997437859,-500.0,0.00036738,15]
[393795642,1762997437869,-500.0,0.00036738,15]
[393795644,1762997437878,-500.0,0.00036738,15]
[393795646,1762997437886,-500.0,0.00036738,15]
[393795648,1762997437896,-500.0,0.00036738,15]
[393795650,1762997437905,-500.0,0.00036738,15]
[393795652,1762997437915,-500.0,0.00036738,15]
[393795654,1762997437924,-500.0,0.00036738,15]
[393795656,1762997437933,-500.0,0.00036738,15]
[393795658,1762997437943,-500.0,0.00036738,15]
[393795660,1762997437952,-500.0,0.00036738,15]
[393795662,1762997437962,-456.18649953,0.00036738,15]
[393795664,1762997437975,-43.81350047,0.00036738,15]
[393795666,1762997437984,-500.0,0.00036738,15]
[393795668,1762997437994,-500.0,0.00036738,15]
[393795670,1762997438004,-500.0,0.00036738,15]
[393795672,1762997438014,-191.44045417,0.00036738,15]
[393795674,1762997438023,-500.0,0.00036738,15]
[393795676,1762997438033,-500.0,0.00036738,15]
[393795679,1762997438043,-500.0,0.00036738,15]
[393795681,1762997438053,-500.0,0.00036738,15]
[393795683,1762997438064,-500.0,0.00036738,15]
[393795685,1762997438073,-500.0,0.00036738,15]
[393795687,1762997438084,-500.0,0.00036738,15]
[393795688,1762997438094,-500.0,0.00036738,15]
[393795690,1762997438103,-463.72628996,0.00036738,15]
[393795723,1762997438428,-36.27371004,0.00036738,15]
[393795725,1762997438440,-500.0,0.00036738,15]
[393795727,1762997438450,-500.0,0.00036738,15]
[393795729,1762997438460,-500.0,0.00036738,15]
[393795731,1762997438470,-500.0,0.00036738,15]
[393795733,1762997438479,-500.0,0.00036738,15]
[393795735,1762997438488,-500.0,0.00036738,15]
[393795737,1762997438498,-500.0,0.00036738,15]
[393795739,1762997438508,-500.0,0.00036738,15]
[393795741,1762997438518,-500.0,0.00036738,15]
[393795743,1762997438527,-500.0,0.00036738,15]
[393795745,1762997438537,-500.0,0.00036738,15]
[393795747,1762997438546,-500.0,0.00036738,15]
[393795749,1762997438557,-500.0,0.00036738,15]
[393795751,1762997438568,-500.0,0.00036738,15]
[393795753,1762997438579,-500.0,0.00036738,15]
[393795755,1762997438589,-500.0,0.00036738,15]
[393795757,1762997438599,-500.0,0.00036738,15]
[393795759,1762997438609,-500.0,0.00036738,15]
[393795761,1762997438619,-368.58405512,0.00036738,15]
[393795763,1762997438629,-500.0,0.00036738,15]
[393795766,1762997438640,-3201.12021055,0.00036739,20]
[393795912,1762997440224,-14436.7431375,0.00036739,20]
[393795914,1762997440238,-32442.13665195,0.00036739,20]
[393795916,1762997440247,-3525.03067669,0.0003674,2]
[393795918,1762997440256,-161.367237,0.00039071,2]
[393795920,1762997440266,-300.0,0.0003989,24]
[393795922,1762997440275,-311.0,0.00039988,5]
[393795924,1762997440284,-301.79091428,0.00039988,31]
[393795926,1762997440293,-339.56595414,0.00039988,7]
[393795928,1762997440302,-16716.11736713,0.00039989,2]
[393796187,1762997442903,-21325.52500519,0.00039989,2]
[393796498,1762997445933,-1628.85141834,0.00039989,2]
[393796781,1762997448871,195.70161042,0.00018343,2]
[393797789,1762997459724,4855.0,0.0003674,20]
[393799395,1762997484495,4465.0,0.0003674,20]
[393799399,1762997589655,1390.6654341,0.0003674,120]
[393799400,1762997647271,424.0,0.00023,2]
[393799404,1762997726391,5000.0,0.0003674,120]
[393799405,1762997731163,525.5,0.0003287,120]
[393799406,1762997734545,5000.0,0.0003674,120]
[393799407,1762997754330,500.0,0.0003674,120]
[393799408,1762997754965,1012.00028045,0.0003674,20]
[393799409,1762997760126,521.0,0.0003674,120]
[393799411,1762997852453,915.06886328,0.0003674,120]
[393799413,1762997876763,380.0,0.0003674,120]
[393799415,1762997940676,2427.99,0.00023,2]
[393799417,1762997983090,644.0,0.00036742,120]
[393799419,1762998121687,63.69707051,0.00013699,2]
[393799420,1762998121716,94.30434249,0.00013699,2]
[393799421,1762998122235,158.001413,0.00020548,2]
[393799422,1762998125849,150.0,0.00036742,20]
[393799425,1762998398192,500.0,0.00036741,20]
[393799426,1762998471693,150.0,0.00036741,20]
[393799427,1762998490127,2000.0,0.00036741,20]
[393799428,1762998498891,2000.0,0.00036741,20]
[393799429,1762998527777,537.63778691,0.00036741,20]
[393799430,1762998536619,2000.0,0.00036741,20]
[393799469,1762998631905,-150.0,0.00025376,2]
[393799472,1762998631914,-197.21051593,0.00027376,2]
[393799474,1762998631924,-158.001413,0.00027397,2]
[393799476,1762998631934,-378.3104522,0.00031724,30]
[393799477,1762998631943,-175.8679122,0.00032028,60]
[393799479,1762998631953,-223.24070957,0.00032032,2]
[393799666,1762998637759,-280.3806879,0.00032032,2]
[393799668,1762998637815,-4048.55102883,0.00032032,2]
[393799669,1762998637825,-157.74008752,0.00034147,120]
[393799670,1762998637835,-158.001413,0.00034247,2]
[393799671,1762998637849,-196.09301365,0.00034639,2]
[393799672,1762998637858,-154.0,0.00035,120]
[393799673,1762998637869,-999.0,0.00035456,2]
[393799674,1762998637879,-212.987624,0.00035716,2]
[393799675,1762998637889,-14553.626833,0.00035716,2]
[393799676,1762998637910,-4572.68017429,0.00035716,2]
[393799677,1762998637922,-7143.46913529,0.00035716,2]
[393799678,1762998637934,-9312.924371,0.00035716,2]
[393799679,1762998637945,-4138.63823947,0.00035716,2]